Workbook

Sheet Index
B2: Revenue Reset Information Pro Formas
B4: INDEX | C4: Click on orange box for link to pages
B7: Historic Opex
B8: Table 1.1 | C8: Historic Opex by Category current reporting format- Summary
B9: 1.2 | C9: Historic Opex by Category current reporting format Year 1
B10: 1.3 | C10: Historic Opex by Category current reporting format Year 2
B11: 1.4 | C11: Historic Opex by Category current reporting format Year 3
B12: 1.5 | C12: Historic Opex by Category current reporting format Year 4
B13: 1.6 | C13: Historic Opex by Category current reporting format Year 5
B15: This file presents operational expenditure in accordance with the current regulatory period reporting format.

Sheet Hist Opex Summary Curr
B2: Current Regulatory Period (2008-2013) Reporting Format
B3: 1.1 HISTORIC OPEX by expenditure category
B4: for the period 1 July 2008 to 30 June 2013
B5: ($m, nominal) | D5: As returned to AER
D6: Actual | E6: Actual | F6: Actual
D7: 2008/09 | E7: 2009/10 | F7: 2010/11 | G7: 2011/12 | H7: 2012/13 | I7: Total | K7: Revenue Cap | M7: Key cost drivers and explanation for material differences over time
B8: Direct Operations & Maintenance
B9: Maintenance
B10: Communications | M10: Continuing trend reflects asset management program applied to a growing asset base, at a lower level than the allowance due to fewer than expected equipment failures requiring corrective maintenance to date
B11: Labour | D11: 0.727 | E11: 0.924 | F11: 0.8613866215 | G11: ='Hist Opex Cat Yr4 Curr'!N11 -> 0.5793314062 | H11: ='Hist Opex Cat Yr5 Curr'!N11 -> 0.6144489935 | I11: =SUM(D11:H11) -> 3.706167021
B12: Non Labour | D12: 0.343 | E12: 0.509 | F12: 0.5676133785 | G12: ='Hist Opex Cat Yr4 Curr'!N12 -> 1.486 | H12: ='Hist Opex Cat Yr5 Curr'!N12 -> 0.6215539565 | I12: =SUM(D12:H12) -> 3.527167335
B13: Sub-Totals | D13: =SUM(D11:D12) -> 1.07 | E13: =SUM(E11:E12) -> 1.433 | F13: 1.429 | G13: 2.065331406 | H13: 1.23600295 | I13: 7.233334356 | K13: =SUM('Hist Opex Cat Yr1 Curr:Hist Opex Cat Yr4 Curr'!P13) -> 8.403247691
B14: Lines | M14: Continuing growth in refurbishment spend due to increased remedial work, plus increase in routine inspection effort, driven by asset condition and fire start risk mitigation
B15: Labour | D15: 2.097 | E15: 2.573 | F15: 4.362887437 | G15: ='Hist Opex Cat Yr4 Curr'!N15 -> 2.83 | H15: ='Hist Opex Cat Yr5 Curr'!N15 -> 1.858692008 | I15: =SUM(D15:H15) -> 13.72157945
B16: Non Labour | D16: 2.433 | E16: 2.987 | F16: 5.137112563 | G16: ='Hist Opex Cat Yr4 Curr'!N16 -> 10.93 | H16: ='Hist Opex Cat Yr5 Curr'!N16 -> 6.883743812 | I16: =SUM(D16:H16) -> 28.37085637
B17: Sub-Totals | D17: =SUM(D15:D16) -> 4.53 | E17: =SUM(E15:E16) -> 5.56 | F17: 9.5 | G17: 13.76 | H17: 8.74243582 | I17: 42.09243582 | K17: =SUM('Hist Opex Cat Yr1 Curr:Hist Opex Cat Yr4 Curr'!P17) -> 24.29808101
B18: Secondary Systems | M18: Reflects rescheduling of secondary systems refurbishment activity as available resources were reprioritised to lines and substation maintenance activity
B19: Labour | D19: 1.458 | E19: 1.939 | F19: 1.312435923 | G19: ='Hist Opex Cat Yr4 Curr'!N19 -> 1.203775766 | H19: ='Hist Opex Cat Yr5 Curr'!N19 -> 0.9752048267 | I19: =SUM(D19:H19) -> 6.888416515
B20: Non Labour | D20: 0.592 | E20: 0.811 | F20: 0.3385640773 | G20: ='Hist Opex Cat Yr4 Curr'!N20 -> 0.817 | H20: ='Hist Opex Cat Yr5 Curr'!N20 -> 0.8549225533 | I20: =SUM(D20:H20) -> 3.413486631
B21: Sub-Totals | D21: =SUM(D19:D20) -> 2.05 | E21: =SUM(E19:E20) -> 2.75 | F21: 1.651 | G21: 2.020775766 | H21: 1.83012738 | I21: 10.30190315 | K21: =SUM('Hist Opex Cat Yr1 Curr:Hist Opex Cat Yr4 Curr'!P21) -> 10.19829662
B22: Substations
B23: Labour | D23: 6.693 | E23: 8.007 | F23: 8.265247436 | G23: ='Hist Opex Cat Yr4 Curr'!N23 -> 5.710146583 | H23: ='Hist Opex Cat Yr5 Curr'!N23 -> 6.865878687 | I23: =SUM(D23:H23) -> 35.54127271
B24: Non Labour | D24: 3.417 | E24: 3.543 | F24: 3.509752564 | G24: ='Hist Opex Cat Yr4 Curr'!N24 -> 6.21 | H24: ='Hist Opex Cat Yr5 Curr'!N24 -> 7.433801943 | I24: =SUM(D24:H24) -> 24.11355451
B25: Sub-Totals | D25: =SUM(D23:D24) -> 10.11 | E25: =SUM(E23:E24) -> 11.55 | F25: 11.775 | G25: 11.92014658 | H25: 14.29968063 | I25: 59.65482721 | K25: =SUM('Hist Opex Cat Yr1 Curr:Hist Opex Cat Yr4 Curr'!P25) -> 43.23047904
B26: Easements
B27: Labour | D27: 1.071 | E27: 1.21 | F27: 1.186665845 | G27: ='Hist Opex Cat Yr4 Curr'!N27 -> 0.81 | H27: ='Hist Opex Cat Yr5 Curr'!N27 -> 0.785432499 | I27: =SUM(D27:H27) -> 5.063098344
B28: Non Labour | D28: 0.449 | E28: 0.43 | F28: 0.4083341554 | G28: ='Hist Opex Cat Yr4 Curr'!N28 -> 0.73 | H28: ='Hist Opex Cat Yr5 Curr'!N28 -> 0.690338221 | I28: =SUM(D28:H28) -> 2.707672376
B29: Sub-Totals | D29: =SUM(D27:D28) -> 1.52 | E29: =SUM(E27:E28) -> 1.64 | F29: 1.595 | G29: 1.54 | H29: 1.47577072 | I29: 7.77077072 | K29: =SUM('Hist Opex Cat Yr1 Curr:Hist Opex Cat Yr4 Curr'!P29) -> 4.599195082
B30: Summary | H30: ='Hist Opex Cat Yr5 Curr'!N30 -> 0
B31: Sub-Total Labour | D31: =+D11+D15+D19+D23+D27 -> 12.046 | E31: 14.653 | F31: 15.98862326 | G31: 11.13325376 | H31: =+H11+H15+H19+H23+H27 -> 11.09965701 | I31: 64.92053403
B32: Sub-Total Non Labour | D32: 7.234 | E32: 8.28 | F32: 9.961376737 | G32: 20.173 | H32: =+H12+H16+H20+H24+H28 -> 16.48436049 | I32: 62.13273722
B33: Total Maintenance | D33: =SUM(D31:D32) -> 19.28 | E33: =SUM(E31:E32) -> 22.933 | F33: =SUM(F31:F32) -> 25.95 | G33: =SUM(G31:G32) -> 31.30625376 | H33: =SUM(H31:H32) -> 27.5840175 | I33: 127.0532713 | K33: =SUM(K13:K29) -> 90.72929944
B34: Field Support
B35: Field Support | D35: 6.71 | E35: 6.03 | F35: 7.061 | G35: ='Hist Opex Cat Yr4 Curr'!N35 -> 7.282 | H35: ='Hist Opex Cat Yr5 Curr'!N35 -> 7.06 | I35: =SUM(D35:H35) -> 34.143 | K35: =SUM('Hist Opex Cat Yr1 Curr:Hist Opex Cat Yr4 Curr'!P35) -> 28.29720238
B36: Direct Charges | D36: 2.57 | E36: 2.087 | F36: 2.155 | G36: ='Hist Opex Cat Yr4 Curr'!N36 -> 1.914 | H36: ='Hist Opex Cat Yr5 Curr'!N36 -> 2.85721226 | I36: =SUM(D36:H36) -> 11.58321226 | K36: =SUM('Hist Opex Cat Yr1 Curr:Hist Opex Cat Yr4 Curr'!P36) -> 8.173087378
B37: Total Field Support | D37: =SUM(D35:D36) -> 9.28 | E37: =SUM(E35:E36) -> 8.117 | F37: 9.216 | G37: 9.196 | H37: 9.91721226 | I37: 45.72621226 | K37: =SUM(K35:K36) -> 36.47028976
B38: Operations | H38: ='Hist Opex Cat Yr5 Curr'!N38 -> 0
B39: Network Switching | D39: 1.85 | E39: 1.64 | F39: 1.535 | G39: ='Hist Opex Cat Yr4 Curr'!N39 -> 1.732 | H39: ='Hist Opex Cat Yr5 Curr'!N39 -> 1.68 | I39: =SUM(D39:H39) -> 8.437 | K39: =SUM('Hist Opex Cat Yr1 Curr:Hist Opex Cat Yr4 Curr'!P39) -> 6.035258012
B40: Asset Monitoring | D40: 0.45 | E40: 0.46 | F40: 0.612 | G40: ='Hist Opex Cat Yr4 Curr'!N40 -> 0.827 | H40: ='Hist Opex Cat Yr5 Curr'!N40 -> 1.47 | I40: =SUM(D40:H40) -> 3.819 | K40: =SUM('Hist Opex Cat Yr1 Curr:Hist Opex Cat Yr4 Curr'!P40) -> 2.858525148
B41: Total Operations | D41: =SUM(D39:D40) -> 2.3 | E41: =SUM(E39:E40) -> 2.1 | F41: 2.147 | G41: 2.559 | H41: =SUM(H39:H40) -> 3.15 | I41: 12.256 | K41: =SUM(K39:K40) -> 8.89378316
B42: Total Direct Operations & Maintenance | D42: =+D33+D37+D41 -> 30.86 | E42: =+E33+E37+E41 -> 33.15 | F42: 37.313 | G42: 43.06125376 | H42: =+H33+H37+H41 -> 40.65122976 | I42: 185.0354835 | K42: =+K33+K34+K38+K41+K37 -> 136.0933724
B43: Other Controllable
B44: Asset Manager Support
B45: Grid Planning | D45: 0.92 | E45: 1.45 | F45: 1.838 | G45: ='Hist Opex Cat Yr4 Curr'!N45 -> 1.258 | H45: ='Hist Opex Cat Yr5 Curr'!N45 -> 1.79 | I45: =SUM(D45:H45) -> 7.256 | K45: =SUM('Hist Opex Cat Yr1 Curr:Hist Opex Cat Yr4 Curr'!P45) -> 4.492796933
B46: Project Support | D46: 2.79 | E46: 2.65 | F46: 3.383 | G46: ='Hist Opex Cat Yr4 Curr'!N46 -> 3.225 | H46: ='Hist Opex Cat Yr5 Curr'!N46 -> 2.77 | I46: =SUM(D46:H46) -> 14.818 | K46: =SUM('Hist Opex Cat Yr1 Curr:Hist Opex Cat Yr4 Curr'!P46) -> 12.67648431
B47: IT Support | D47: 1.7 | E47: 1.24 | F47: 1.32 | G47: ='Hist Opex Cat Yr4 Curr'!N47 -> 1.921 | H47: ='Hist Opex Cat Yr5 Curr'!N47 -> 1.78 | I47: =SUM(D47:H47) -> 7.961 | K47: =SUM('Hist Opex Cat Yr1 Curr:Hist Opex Cat Yr4 Curr'!P47) -> 7.441542844
B48: Customer & Regulatory Support | D48: 0.93 | E48: 0.65 | F48: 0.579 | G48: ='Hist Opex Cat Yr4 Curr'!N48 -> 0.759 | H48: ='Hist Opex Cat Yr5 Curr'!N48 -> 2.11 | I48: =SUM(D48:H48) -> 5.028 | K48: =SUM('Hist Opex Cat Yr1 Curr:Hist Opex Cat Yr4 Curr'!P48) -> 2.652188687
B49: Sub-Totals | D49: =SUM(D45:D48) -> 6.34 | E49: =SUM(E45:E48) -> 5.99 | F49: 7.12 | G49: 7.163 | H49: ='Hist Opex Cat Yr5 Curr'!N49 -> 8.44912252 | I49: 35.063 | K49: =SUM(K45:K48) -> 27.26301278
B50: Insurance | D50: ='Hist Opex Cat Yr1 Curr'!$K50 -> 1.829855572 | E50: ='Hist Opex Cat Yr2 Curr'!$K50 -> 1.850192 | F50: ='Hist Opex Cat Yr3 Curr'!$K50 -> 2.228491 | G50: ='Hist Opex Cat Yr4 Curr'!$K50 -> 2.481 | H50: ='Hist Opex Cat Yr5 Curr'!N50 -> 2.81 | I50: =SUM(D50:H50) -> 11.19953857 | K50: =SUM('Hist Opex Cat Yr1 Curr:Hist Opex Cat Yr4 Curr'!P50) -> 11.76162194
B51: Corporate Support | D51: ='Hist Opex Cat Yr1 Curr'!$K51 -> 9.34 | E51: ='Hist Opex Cat Yr2 Curr'!$K51 -> 9.93 | F51: ='Hist Opex Cat Yr3 Curr'!$K51 -> 9.217 | G51: ='Hist Opex Cat Yr4 Curr'!$K51 -> 11.476 | H51: ='Hist Opex Cat Yr5 Curr'!N51 -> 13.38 | I51: =SUM(D51:H51) -> 53.343 | K51: =SUM('Hist Opex Cat Yr1 Curr:Hist Opex Cat Yr4 Curr'!P51) -> 44.85623131
B52: Total Other Controllable | D52: =D49+D50+D51 -> 17.50985557 | E52: =E49+E50+E51 -> 17.770192 | F52: 18.565491 | G52: 21.12 | H52: ='Hist Opex Cat Yr5 Curr'!N52 -> 24.63912252 | I52: 99.60553857 | K52: =SUM(K49:K51) -> 83.88086603
B54: Total Maintenance Labour | D54: =+D31 -> 12.046 | E54: 14.653 | F54: 15.98862326 | G54: 11.13325376 | H54: ='Hist Opex Cat Yr5 Curr'!N54 -> 11.09965701 | I54: 64.92053403
B55: Total Maintenance Non labour | D55: 7.234 | E55: 8.28 | F55: 9.961376737 | G55: 20.173 | H55: ='Hist Opex Cat Yr5 Curr'!N55 -> 16.48436049 | I55: 62.13273722
B56: Total Other | D56: =D52+D41+D37 -> 29.08985557 | E56: =E52+E41+E37 -> 27.987192 | F56: 29.928491 | G56: 32.875 | H56: ='Hist Opex Cat Yr5 Curr'!N56 -> 37.70633478 | I56: 157.5877508
B57: TOTAL CONTROLLABLE OPEX | D57: =SUM(D54:D56) -> 48.36985557 | E57: =SUM(E54:E56) -> 50.920192 | F57: 55.878491 | G57: 64.18125376 | H57: ='Hist Opex Cat Yr5 Curr'!N57 -> 65.29035228 | I57: 284.6410221 | K57: =K52+K42 -> 219.9742384
B59: Other Opex
B60: Self Insurance | D60: ='Hist Opex Cat Yr1 Curr'!$N60 -> 1.722934 | E60: ='Hist Opex Cat Yr2 Curr'!K60 -> 1.790808 | F60: ='Hist Opex Cat Yr3 Curr'!$N60 -> 1.873509 | G60: ='Hist Opex Cat Yr4 Curr'!$N60 -> 1.923 | H60: ='Hist Opex Cat Yr5 Curr'!N60 -> 2.032656 | I60: =SUM(D60:H60) -> 9.342907 | K60: =SUM('Hist Opex Cat Yr1 Curr:Hist Opex Cat Yr4 Curr'!P60) -> 7.310251
B61: Network Support | D61: 4.76 | E61: 4.84 | F61: 6.618 | G61: ='Hist Opex Cat Yr4 Curr'!N61 -> 6.48 | H61: ='Hist Opex Cat Yr5 Curr'!N61 -> 6.74 | I61: =SUM(D61:H61) -> 29.438 | K61: =SUM('Hist Opex Cat Yr1 Curr:Hist Opex Cat Yr4 Curr'!P61) -> 21.46332058 | M61: Refer Network Support Pass Through Application
B62: TOTAL OTHER OPEX | D62: =SUM(D59:D61) -> 6.482934 | E62: 6.630808 | F62: 8.491509 | G62: 8.403 | H62: ='Hist Opex Cat Yr5 Curr'!N62 -> 8.772656 | I62: 38.780907 | K62: 28.77357158
B65: Grand Total | D65: =D62+D57 -> 54.85278957 | E65: =E62+E57 -> 57.551 | F65: 64.37 | G65: 72.58425376 | H65: =H62+H57 -> 74.06300828 | I65: =+I57+I62 -> 323.4219291 | K65: =+K57+K62 -> 248.74781
B67: Revenue Cap Allowance | D67: ='Hist Opex Cat Yr1 Curr'!N67 -> 56.54526841 | E67: ='Hist Opex Cat Yr2 Curr'!N67 -> 59.97971366 | F67: ='Hist Opex Cat Yr3 Curr'!N67 -> 64.08801467 | G67: ='Hist Opex Cat Yr4 Curr'!N67 -> 68.133943 | H67: ='Hist Opex Cat Yr5 Curr'!N67 -> 72.81 | I67: =SUM(D67:H67) -> 321.5569397
B68: Corrected values in red
D70: 54.82634358 | E70: 57.55479396 | F70: 64.27989521 | G70: 72.58378512 | H70: 74.07265674 | I70: 323.3174746 | K70: 321.5529967

Sheet Hist Opex Cat Yr1 Curr
B2: Current Regulatory Period (2008-2013) Reporting Format
B3: Historical expenditure category
B4: 2008/09
B5: ($m, nominal) | C5: Year 1
C6: Field Maintenance | F6: Field Maintenance | G6: Operational Refurbishment | I6: Network Monitoring & Control | J6: Support / Corporate | L6: Corporate Support
C7: Routine | D7: Condition-Based | E7: Corrective | H7: Maintenance Support | J7: Network | K7: Non-Network | N7: TOTAL | P7: Revenue Cap Allowance | R7: Key cost drivers and explanation for material differences over time
B8: Direct Operations & Maintenance
B9: Field Maintenance
B10: Communications
B11: Labour | C11: 0.4499362448 | D11: 0 | E11: 0.2157878984 | G11: 0.06116527497 | N11: =SUM(C11:K11) -> 0.7268894182
B12: Non Labour | C12: 0.2800637552 | D12: 0 | E12: 0.004212101566 | G12: 0.05883472503 | N12: =SUM(C12:K12) -> 0.3431105818
B13: Communications | C13: =SUM(C11:C12) -> 0.73 | D13: 0 | E13: 0.22 | F13: =SUM(C13:E13) -> 0.95 | G13: 0.12 | H13: 0 | I13: 0 | J13: 0 | K13: 0 | L13: =SUM(J13:K13) -> 0 | N13: =SUM(F13:K13) -> 1.07 | P13: 1.684790216 | R13: The corrective maintenance spend in communication equipment is reactive in nature, the fall in activity vs. AER allowance represents a reduced level of equipment failures. While it is too early in the regulatory period to determine if this trend will continue and result in permanent saving. The reduction in the communication refurbishment spend represents a reduced level of activity due to efficiency targets.
B14: Lines
B15: Labour | C15: 0.4782031607 | D15: 0 | E15: 0.6229106971 | G15: 0.9960830771 | N15: =SUM(C15:K15) -> 2.097196935
B16: Non Labour | C16: 0.5817968393 | D16: 0 | E16: 0.5870893029 | G16: 1.263916923 | N16: =SUM(C16:K16) -> 2.432803065
B17: Lines | C17: =SUM(C15:C16) -> 1.06 | D17: 0 | E17: 1.21 | F17: =SUM(C17:E17) -> 2.27 | G17: 2.26 | H17: 0 | I17: 0 | J17: 0 | K17: 0 | L17: =SUM(J17:K17) -> 0 | N17: =SUM(F17:K17) -> 4.53 | P17: 6.2546897 | R17: Removal of the Port River Crossing line & towers was identified in the AER allowance but has been postponed to later in the Regulatory Period.
B18: Secondary Systems
B19: Labour | C19: 0.3574835918 | D19: 0 | E19: 0.6374926362 | G19: 0.4630574589 | N19: =SUM(C19:K19) -> 1.458033687
B20: Non Labour | C20: 0.2225164082 | D20: 0 | E20: 0.07250736384 | G20: 0.2969425411 | N20: =SUM(C20:K20) -> 0.5919663132
B21: Secondary Systems | C21: =SUM(C19:C20) -> 0.58 | D21: 0 | E21: 0.71 | F21: =SUM(C21:E21) -> 1.29 | G21: 0.76 | H21: 0 | I21: 0 | J21: 0 | K21: 0 | L21: =SUM(J21:K21) -> 0 | N21: =SUM(F21:K21) -> 2.05 | P21: 2.069788403
B22: Substations
B23: Labour | C23: 2.42842302 | D23: 0.1869304415 | E23: 3.153141989 | G23: 0.92520626 | N23: =SUM(C23:K23) -> 6.69370171
B24: Non Labour | C24: 1.51157698 | D24: 0.03306955849 | E24: 0.3668580113 | G24: 1.50479374 | N24: =SUM(C24:K24) -> 3.41629829
B25: Substations | C25: =SUM(C23:C24) -> 3.94 | D25: 0.22 | E25: 3.52 | F25: =SUM(C25:E25) -> 7.68 | G25: 2.43 | H25: 0 | I25: 0 | J25: 0 | K25: 0 | L25: =SUM(J25:K25) -> 0 | N25: =SUM(F25:K25) -> 10.11 | P25: 9.832776205
B26: Easements
B27: Labour | C27: 1.071473486 | D27: 0 | E27: 0 | G27: 0 | N27: =SUM(C27:K27) -> 1.071473486
B28: Non Labour | C28: 0.3485265144 | D28: 0 | E28: 0 | G28: 0.1 | N28: =SUM(C28:K28) -> 0.4485265144
B29: Easements | C29: =SUM(C27:C28) -> 1.42 | D29: 0 | E29: 0 | F29: =SUM(C29:E29) -> 1.42 | G29: 0.1 | H29: 0 | I29: 0 | J29: 0 | K29: 0 | L29: =SUM(J29:K29) -> 0 | N29: =SUM(F29:K29) -> 1.52 | P29: 1.079293946 | R29: The overspend in routine easement spend represent extra vegetation cutting requirements placed on Electranet from the Office of the Technical Regulator (OTR).
B30: Summary
B31: Sub-Total Labour | C31: =+C11+C15+C19+C23+C27 -> 4.785519503 | D31: 0.1869304415 | E31: 4.62933322 | G31: 2.445512071 | H31: 0 | I31: 0 | J31: 0 | K31: =+K11+K15+K19+K23+K27 -> 0 | N31: =SUM(F31:K31) -> 2.445512071
B32: Sub-Total Non Labour | C32: 2.944480497 | D32: 0.03306955849 | E32: 1.03066678 | G32: 3.224487929 | H32: 0 | I32: 0 | J32: 0 | K32: 0 | N32: =SUM(F32:K32) -> 3.224487929
B33: Total Maintenance | C33: =+C31+C32 -> 7.73 | D33: 0.22 | E33: 5.66 | F33: =SUM(C33:E33) -> 13.61 | G33: 5.67 | H33: 0 | I33: 0 | J33: 0 | K33: 0 | L33: =SUM(J33:K33) -> 0 | N33: =SUM(F33:K33) -> 19.28 | P33: 20.92133847
B34: Field Support
B35: Field Support | H35: 6.71 | N35: =SUM(C35:K35) -> 6.71 | P35: 6.408764608
B36: Direct Charges | H36: 2.57 | N36: =SUM(C36:K36) -> 2.57 | P36: 1.781515709 | R36: Communication expenses increased significantly as extra data services required on new substations.
B37: Field Support | C37: =SUM(C35:C36) -> 0 | D37: 0 | E37: 0 | F37: =SUM(C37:E37) -> 0 | G37: 0 | H37: 9.28 | I37: 0 | J37: 0 | K37: 0 | L37: =SUM(J37:K37) -> 0 | N37: =SUM(F37:K37) -> 9.28 | P37: =SUM(P35:P36) -> 8.190280317
B38: Operations
B39: Network Switching | I39: 1.85 | N39: =SUM(C39:K39) -> 1.85 | P39: 1.361625875
B40: Asset Monitoring | I40: 0.45 | N40: =SUM(C40:K40) -> 0.45 | P40: 0.6447208964
B41: Operations | C41: =SUM(C39:C40) -> 0 | D41: 0 | E41: 0 | F41: =SUM(C41:E41) -> 0 | G41: 0 | H41: 0 | I41: 2.3 | J41: 0 | K41: 0 | L41: =SUM(J41:K41) -> 0 | N41: =SUM(F41:K41) -> 2.3 | P41: =SUM(P39:P40) -> 2.006346771
B42: Total Direct Operations & Maintenance | C42: =+C41+C37+C33 -> 7.73 | D42: 0.22 | E42: 5.66 | F42: =SUM(C42:E42) -> 13.61 | G42: 5.67 | H42: 9.28 | I42: =+I41+I37+I33 -> 2.3 | J42: 0 | K42: 0 | L42: =SUM(J42:K42) -> 0 | N42: =SUM(F42:K42) -> 30.86 | P42: =P41+P37+P33 -> 31.11796556
B43: Other Controllable
B44: Asset Manager Support
B45: Grid Planning | J45: 0.92 | N45: =SUM(C45:K45) -> 0.92 | P45: 1.039027144
B46: Project Support | J46: 2.79 | N46: =SUM(C46:K46) -> 2.79 | P46: 2.911262045
B47: IT Support | K47: 1.7 | N47: =SUM(C47:K47) -> 1.7 | P47: 1.752788653
B48: Customer & Regulatory Support | J48: 0.93 | N48: =SUM(C48:K48) -> 0.93 | P48: 0.6143768702 | R48: The overspend represents additional regulation compliance service and an increase in legal costs for the Merits Review
B49: Asset Manager Support | C49: =SUM(C45:C48) -> 0 | D49: 0 | E49: 0 | F49: =SUM(C49:E49) -> 0 | G49: 0 | H49: 0 | I49: 0 | J49: 4.64 | K49: 1.7 | L49: =SUM(J49:K49) -> 6.34 | N49: =SUM(F49:K49) -> 6.34 | P49: =SUM(P45:P48) -> 6.317454713
B50: Insurance | F50: 0 | G50: 0 | H50: 0 | I50: 0 | K50: 1.829855572 | L50: =SUM(J50:K50) -> 1.829855572 | N50: =SUM(F50:K50) -> 1.829855572 | P50: =4.201872942325-K60 -> 2.478938942 | R50: ElectraNet achieved lower insurance premiums for the year due to the current economic climate
B51: Corporate Support | F51: 0 | G51: 0 | H51: 0 | I51: 0 | K51: 9.34 | L51: =SUM(J51:K51) -> 9.34 | N51: =SUM(F51:K51) -> 9.34 | P51: 10.07301716
B52: Total Other Controllable | C52: =+C51+C50+C49 -> 0 | D52: =+D51+D50+D49 -> 0 | E52: 0 | F52: =SUM(C52:E52) -> 0 | G52: 0 | H52: 0 | I52: 0 | J52: 4.64 | K52: 12.86985557 | L52: =SUM(J52:K52) -> 17.50985557 | N52: =SUM(F52:K52) -> 17.50985557 | P52: =SUM(P49:P51) -> 18.86941082
B54: Total Maintenance Labour | C54: =+C31 -> 4.785519503 | D54: 0.1869304415 | E54: 4.62933322 | G54: 2.445512071 | H54: 0 | I54: 0 | J54: 0 | K54: 0 | N54: =SUM(F54:K54) -> 2.445512071
B55: Total Maintenance Non labour | C55: 2.944480497 | D55: 0.03306955849 | E55: 1.03066678 | G55: 3.224487929 | H55: 0 | I55: 0 | J55: 0 | K55: 0 | N55: =SUM(F55:K55) -> 3.224487929
B56: Total Other | C56: =C37+C41+C49+C50+C51 -> 0 | D56: =D37+D41+D49+D50+D51 -> 0 | E56: 0 | F56: 0 | G56: 0 | H56: 9.28 | I56: 2.3 | J56: 4.64 | K56: 12.86985557 | N56: =SUM(F56:K56) -> 29.08985557
B57: TOTAL CONTROLLABLE OPEX | C57: =+C52+C42 -> 7.73 | D57: =+D52+D42 -> 0.22 | E57: =+E52+E42 -> 5.66 | F57: =SUM(C57:E57) -> 13.61 | G57: =+G52+G42 -> 5.67 | H57: =+H52+H42 -> 9.28 | I57: =+I52+I42 -> 2.3 | J57: =+J52+J42 -> 4.64 | K57: =+K52+K42 -> 12.86985557 | L57: =SUM(J57:K57) -> 17.50985557 | N57: =SUM(F57:K57) -> 48.36985557 | P57: =P52+P42 -> 49.98737638
B59: Other Opex
B60: Self Insurance | F60: 0 | G60: 0 | H60: 0 | I60: 0 | K60: 1.722934 | L60: =SUM(J60:K60) -> 1.722934 | N60: =SUM(F60:K60) -> 1.722934 | P60: =K60 -> 1.722934
B61: Network Support | F61: 0 | G61: 0 | H61: 0 | I61: 0 | J61: 4.76 | L61: =SUM(J61:K61) -> 4.76 | N61: =SUM(F61:K61) -> 4.76 | P61: 4.834958031
B62: TOTAL OTHER OPEX | C62: =SUM(C61:C61) -> 0 | D62: =SUM(D61:D61) -> 0 | E62: =SUM(E60:E61) -> 0 | F62: 0 | G62: 0 | H62: 0 | I62: 0 | J62: 4.76 | K62: 1.722934 | L62: =SUM(L60:L61) -> 6.482934 | N62: =SUM(N60:N61) -> 6.482934 | P62: 6.557892031
B65: Grand Total | C65: =+C62+C57 -> 7.73 | D65: 0.22 | E65: 5.66 | F65: =SUM(C65:E65) -> 13.61 | G65: 5.67 | H65: 9.28 | I65: 2.3 | J65: 9.4 | K65: 14.59278957 | L65: =SUM(J65:K65) -> 23.99278957 | N65: =+N62+N57 -> 54.85278957 | P65: =P57+P62 -> 56.54526841
B67: Revenue Cap Allowance | C67: 8.32747958 | D67: 0.123807387 | E67: 4.860280279 | F67: 13.31156725 | G67: 7.609771224 | H67: 8.190280317 | I67: 2.006346771 | J67: 9.39962409 | K67: 16.02767876 | L67: 25.42730285 | N67: =SUM(F67:K67) -> 56.54526841 | P67: =N67 -> 56.54526841

Sheet Hist Opex Cat Yr2 Curr
B2: Current Regulatory Period (2008-2013) Reporting Format
B3: Historical expenditure category
B4: 2009/10
B5: ($m, nominal) | C5: Year 2
C6: Field Maintenance | F6: Field Maintenance | G6: Operational Refurbishment | I6: Network Monitoring & Control | J6: Support / Corporate | L6: Corporate Support | R6: Key cost drivers and explanation for material differences over time
C7: Routine | D7: Condition-Based | E7: Corrective | H7: Maintenance Support | J7: Network | K7: Non-Network | N7: TOTAL | P7: Revenue Cap Allowance
B8: Direct Operations & Maintenance
B9: Field Maintenance
B10: Communications
B11: Labour | C11: 0.5296961631 | D11: 0 | E11: 0.1864374236 | G11: 0.2074342537 | N11: =SUM(C11:K11) -> 0.9235678404
B12: Non Labour | C12: 0.3133038369 | D12: 0 | E12: 0.003562576389 | G12: 0.1925657463 | N12: =SUM(C12:K12) -> 0.5094321596
B13: Communications | C13: =SUM(C11:C12) -> 0.843 | D13: =SUM(D11:D12) -> 0 | E13: =SUM(E11:E12) -> 0.19 | F13: =SUM(C13:E13) -> 1.033 | G13: =SUM(G11:G12) -> 0.4 | H13: =SUM(H11:H12) -> 0 | I13: =SUM(I11:I12) -> 0 | J13: =SUM(J11:J12) -> 0 | K13: =SUM(K11:K12) -> 0 | L13: =SUM(J13:K13) -> 0 | N13: =SUM(F13:K13) -> 1.433 | P13: 2.033858684 | R13: As corrective maintenance spend in communication equipment is reactive in nature, the variance to the allowance reflects a reduced level of equipment failures. It is too early in the regulatory period to determine if this trend will continue and result in permanent saving.
B14: Lines
B15: Labour | C15: 0.7647836821 | D15: 0 | E15: 0.884195573 | G15: 0.9237266193 | N15: =SUM(C15:K15) -> 2.572705874
B16: Non Labour | C16: 0.8852163179 | D16: 0 | E16: 0.815804427 | G16: 1.286273381 | N16: =SUM(C16:K16) -> 2.987294126
B17: Lines | C17: =SUM(C15:C16) -> 1.65 | D17: =SUM(D15:D16) -> 0 | E17: =SUM(E15:E16) -> 1.7 | F17: =SUM(C17:E17) -> 3.35 | G17: =SUM(G15:G16) -> 2.21 | H17: =SUM(H15:H16) -> 0 | I17: =SUM(I15:I16) -> 0 | J17: =SUM(J15:J16) -> 0 | K17: =SUM(K15:K16) -> 0 | L17: =SUM(J17:K17) -> 0 | N17: =SUM(F17:K17) -> 5.56 | P17: 6.120111901
B18: Secondary Systems
B19: Labour | C19: 0.3393071508 | D19: 0 | E19: 0.7468435534 | G19: 0.8524405509 | N19: =SUM(C19:K19) -> 1.938591255
B20: Non Labour | C20: 0.2006928492 | D20: 0 | E20: 0.08315644662 | G20: 0.5275594491 | N20: =SUM(C20:K20) -> 0.811408745
B21: Secondary Systems | C21: =SUM(C19:C20) -> 0.54 | D21: =SUM(D19:D20) -> 0 | E21: =SUM(E19:E20) -> 0.83 | F21: =SUM(C21:E21) -> 1.37 | G21: =SUM(G19:G20) -> 1.38 | H21: =SUM(H19:H20) -> 0 | I21: =SUM(I19:I20) -> 0 | J21: =SUM(J19:J20) -> 0 | K21: =SUM(K19:K20) -> 0 | L21: =SUM(J21:K21) -> 0 | N21: =SUM(F21:K21) -> 2.75 | P21: 2.439503248
B22: Substations
B23: Labour | C23: 2.381433521 | D23: 0 | E23: 3.575331055 | G23: 2.050045712 | N23: =SUM(C23:K23) -> 8.006810288
B24: Non Labour | C24: 1.408566479 | D24: 0 | E24: 0.6346689448 | G24: 1.499954288 | N24: =SUM(C24:K24) -> 3.543189712
B25: Substations | C25: =SUM(C23:C24) -> 3.79 | D25: =SUM(D23:D24) -> 0 | E25: =SUM(E23:E24) -> 4.21 | F25: =SUM(C25:E25) -> 8 | G25: =SUM(G23:G24)-0.01 -> 3.54 | H25: =SUM(H23:H24) -> 0 | I25: =SUM(I23:I24) -> 0 | J25: =SUM(J23:J24) -> 0 | K25: =SUM(K23:K24) -> 0 | L25: =SUM(J25:K25) -> 0 | N25: =SUM(F25:K25) -> 11.54 | P25: 10.37252039
B26: Easements
B27: Labour | C27: 1.210230595 | D27: 0 | E27: 0 | G27: 0 | N27: =SUM(C27:K27) -> 1.210230595
B28: Non Labour | C28: 0.3797694053 | D28: 0 | E28: 0.05 | G28: 0 | N28: =SUM(C28:K28) -> 0.4297694053
B29: Easements | C29: =SUM(C27:C28) -> 1.59 | D29: =SUM(D27:D28) -> 0 | E29: =SUM(E27:E28) -> 0.05 | F29: =SUM(C29:E29) -> 1.64 | G29: =SUM(G27:G28) -> 0 | H29: =SUM(H27:H28) -> 0 | I29: =SUM(I27:I28) -> 0 | J29: =SUM(J27:J28) -> 0 | K29: =SUM(K27:K28) -> 0 | L29: =SUM(J29:K29) -> 0 | N29: =SUM(F29:K29) -> 1.64 | P29: 1.128086507 | R29: The continuing overspend in routine easement spend reflects extra vegetation cutting requirements placed on ElectraNet by the Technical Regulator.
B30: Summary
B31: Sub-Total Labour | C31: =+C11+C15+C19+C23+C27 -> 5.225451112 | D31: 0 | E31: 5.392807605 | F31: =SUM(C31:E31) -> 10.61825872 | G31: =+G11+G15+G19+G23+G27 -> 4.033647136 | H31: 0 | I31: 0 | J31: 0 | K31: 0 | N31: =SUM(F31:K31) -> 14.65190585
B32: Sub-Total Non Labour | C32: 3.187548888 | D32: 0 | E32: 1.587192395 | F32: =SUM(C32:E32) -> 4.774741283 | G32: 3.506352864 | H32: 0 | I32: 0 | J32: 0 | K32: 0 | N32: =SUM(F32:K32) -> 8.281094148
B33: Total Maintenance | C33: =+C31+C32 -> 8.413 | D33: =+D31+D32 -> 0 | E33: =+E31+E32 -> 6.98 | F33: =SUM(C33:E33) -> 15.393 | G33: =+G31+G32 -> 7.54 | H33: =+H31+H32 -> 0 | I33: =+I31+I32 -> 0 | J33: =+J31+J32 -> 0 | K33: =+K31+K32 -> 0 | L33: =SUM(J33:K33) -> 0 | N33: =SUM(F33:K33) -> 22.933 | P33: 22.09408073
B34: Field Support
B35: Field Support | H35: 6.04 | N35: =SUM(C35:K35) -> 6.04 | P35: 6.844942963
B36: Direct Charges | H36: 2.087 | N36: =SUM(C36:K36) -> 2.087 | P36: 1.963654288 | R36: Additional Land Tax obligation, and rate of growth of property values
B37: Field Support | C37: =SUM(C35:C36) -> 0 | D37: =SUM(D35:D36) -> 0 | E37: =SUM(E35:E36) -> 0 | F37: =SUM(C37:E37) -> 0 | G37: =SUM(G35:G36) -> 0 | H37: =SUM(H35:H36) -> 8.127 | I37: =SUM(I35:I36) -> 0 | J37: =SUM(J35:J36) -> 0 | K37: =SUM(K35:K36) -> 0 | L37: =SUM(J37:K37) -> 0 | N37: =SUM(F37:K37) -> 8.127 | P37: =SUM(P35:P36) -> 8.808597251
B38: Operations
B39: Network Switching | I39: 1.64 | N39: =SUM(C39:K39) -> 1.64 | P39: 1.45800976 | R39: General growth due to asset growth and wages growth
B40: Asset Monitoring | I40: 0.46 | N40: =SUM(C40:K40) -> 0.46 | P40: 0.6910630597
B41: Operations | C41: =SUM(C39:C40) -> 0 | D41: =SUM(D39:D40) -> 0 | E41: =SUM(E39:E40) -> 0 | F41: =SUM(C41:E41) -> 0 | G41: =SUM(G39:G40) -> 0 | H41: =SUM(H39:H40) -> 0 | I41: =SUM(I39:I40) -> 2.1 | J41: =SUM(J39:J40) -> 0 | K41: =SUM(K39:K40) -> 0 | L41: =SUM(J41:K41) -> 0 | N41: =SUM(F41:K41) -> 2.1 | P41: =SUM(P39:P40) -> 2.14907282
B42: Total Direct Operations & Maintenance | C42: =+C41+C37+C33 -> 8.413 | D42: =+D41+D37+D33 -> 0 | E42: =+E41+E37+E33 -> 6.98 | F42: =SUM(C42:E42) -> 15.393 | G42: =+G41+G37+G33 -> 7.54 | H42: =+H41+H37+H33 -> 8.127 | I42: =+I41+I37+I33 -> 2.1 | J42: =+J41+J37+J33 -> 0 | K42: =+K41+K37+K33 -> 0 | L42: =SUM(J42:K42) -> 0 | N42: =SUM(F42:K42) -> 33.16 | P42: =P41+P37+P33 -> 33.0517508
B43: Other Controllable
B44: Asset Manager Support
B45: Grid Planning | J45: 1.45 | N45: =SUM(C45:K45) -> 1.45 | P45: 1.095177417 | R45: General growth due to asset growth and wages growth
B46: Project Support | J46: 2.66 | N46: =SUM(C46:K46) -> 2.66 | P46: 3.08237067
B47: IT Support | K47: 1.24 | N47: =SUM(C47:K47) -> 1.24 | P47: 1.823485666 | R47: Internal charging decrease resulting from lower proportion of costs allocated to this area. The shift in cost allocation is a result of higher capital allocation of IT costs compared to the previous year.
B48: Customer & Regulatory Support | J48: 0.65 | N48: =SUM(C48:K48) -> 0.65 | P48: 0.6460598596
B49: Asset Manager Support | C49: =SUM(C45:C48) -> 0 | D49: =SUM(D45:D48) -> 0 | E49: =SUM(E45:E48) -> 0 | F49: =SUM(C49:E49) -> 0 | G49: =SUM(G45:G48) -> 0 | H49: =SUM(H45:H48) -> 0 | I49: =SUM(I45:I48) -> 0 | J49: =SUM(J45:J48) -> 4.76 | K49: =SUM(K45:K48) -> 1.24 | L49: =SUM(J49:K49)-0.01 -> 5.99 | N49: =SUM(F49:K49)-0.01 -> 5.99 | P49: =SUM(P45:P48) -> 6.647093613
B50: Insurance | F50: 0 | G50: 0 | H50: 0 | I50: 0 | K50: 1.850192 | L50: =SUM(J50:K50)+0.01 -> 1.860192 | N50: =SUM(F50:K50)+0.01 -> 1.860192 | P50: =4.55-K60 -> 2.759192
B51: Corporate Support | F51: 0 | G51: 0 | H51: 0 | I51: 0 | K51: 9.93 | L51: =SUM(J51:K51) -> 9.93 | N51: =SUM(F51:K51) -> 9.93 | P51: 10.59660152
B52: Total Other Controllable | C52: =+C51+C50+C49 -> 0 | D52: =+D51+D50+D49 -> 0 | E52: =+E51+E50+E49 -> 0 | F52: =SUM(C52:E52) -> 0 | G52: =+G51+G50+G49 -> 0 | H52: =+H51+H50+H49 -> 0 | I52: =+I51+I50+I49 -> 0 | J52: =+J51+J50+J49 -> 4.76 | K52: =+K51+K50+K49 -> 13.020192 | L52: =SUM(J52:K52)-0.01 -> 17.770192 | N52: =SUM(F52:K52)-0.01 -> 17.770192 | P52: =SUM(P49:P51) -> 20.00288713
B54: Total Maintenance Labour | C54: =+C31 -> 5.225451112 | D54: 0 | E54: 5.392807605 | G54: =+G31 -> 4.033647136 | H54: 0 | I54: 0 | J54: 0 | K54: 0 | N54: =SUM(F54:K54) -> 4.033647136
B55: Total Maintenance Non labour | C55: 3.187548888 | D55: 0 | E55: 1.587192395 | G55: 3.506352864 | H55: 0 | I55: 0 | J55: 0 | K55: 0 | N55: =SUM(F55:K55) -> 3.506352864
B56: Total Other | C56: =C37+C41+C49+C50+C51 -> 0 | D56: 0 | E56: 0 | F56: 0 | G56: 0 | H56: 8.127 | I56: 2.1 | J56: 4.76 | K56: 13.020192 | N56: =SUM(F56:K56) -> 28.007192
B57: TOTAL CONTROLLABLE OPEX | C57: =+C52+C42 -> 8.413 | D57: =+D52+D42 -> 0 | E57: =+E52+E42 -> 6.98 | F57: =SUM(C57:E57) -> 15.393 | G57: =+G52+G42 -> 7.54 | H57: =+H52+H42 -> 8.127 | I57: =+I52+I42 -> 2.1 | J57: =+J52+J42 -> 4.76 | K57: =+K52+K42 -> 13.020192 | L57: =SUM(J57:K57)-0.01 -> 17.770192 | N57: =SUM(F57:K57) -> 50.940192 | P57: =P52+P42 -> 53.05463793
B59: Other Opex
B60: Self Insurance | F60: 0 | G60: 0 | H60: 0 | I60: 0 | J60: 0 | K60: 1.790808 | L60: =SUM(J60:K60) -> 1.790808 | N60: =SUM(F60:K60) -> 1.790808 | P60: =K60 -> 1.790808
B61: Network Support | F61: 0 | G61: 0 | H61: 0 | I61: 0 | J61: 4.84 | L61: =SUM(J61:K61) -> 4.84 | N61: =SUM(F61:K61) -> 4.84 | P61: 5.135190219
B62: TOTAL OTHER OPEX | C62: =SUM(C61:C61) -> 0 | D62: =SUM(D61:D61) -> 0 | E62: =SUM(E60:E61) -> 0 | F62: 0 | G62: 0 | H62: 0 | I62: 0 | J62: 4.84 | K62: 1.790808 | L62: =SUM(L60:L61) -> 6.630808 | N62: =SUM(N60:N61) -> 6.630808 | P62: 6.925998219
B65: Grand Total | C65: =+C62+C57 -> 8.413 | D65: 0 | E65: 6.98 | F65: 15.393 | G65: 7.54 | H65: 8.127 | I65: 2.1 | J65: 9.6 | K65: 14.811 | L65: =SUM(J65:K65)-0.01 -> 24.401 | N65: =+N62+N57 -> 57.571 | P65: =P57+P62 -> 59.98063615
B67: Revenue Cap Allowance | C67: 9.251209041 | D67: 0.1356837014 | E67: 5.314252012 | F67: 14.70114475 | G67: 7.392935975 | H67: 8.808597251 | I67: 2.14907282 | J67: 9.958798165 | K67: 16.96916469 | L67: 26.92796286 | N67: =SUM(F67:K67) -> 59.97971366 | P67: =N67 -> 59.97971366
B68: Corrected values in red

Sheet Hist Opex Cat Yr3 Curr
B2: Current Regulatory Period (2008-2013) Reporting Format
B3: Historical expenditure category
B4: 2010/11
B5: ($m, nominal) | C5: Year 3
C6: Field Maintenance | F6: Field Maintenance | G6: Operational Refurbishment | I6: Network Monitoring & Control | J6: Support / Corporate | L6: Corporate Support | R6: Key cost drivers and explanation for material differences over time
C7: Routine | D7: Condition-Based | E7: Corrective | H7: Maintenance Support | J7: Network | K7: Non-Network | N7: TOTAL | P7: Revenue Cap Allowance
B8: Direct Operations & Maintenance
B9: Field Maintenance
B10: Communications
B11: Labour | C11: 0.6196332944 | D11: 0 | E11: 0 | F11: 0.6196332944 | G11: 0.2417533271 | N11: =SUM(F11:K11) -> 0.8613866215
B12: Non Labour | C12: 0.3503667056 | D12: 0 | E12: 0 | F12: 0.3503667056 | G12: 0.2172466729 | N12: 0.5676133785
B13: Communications | C13: =SUM(C11:C12) -> 0.97 | D13: 0 | E13: 0 | F13: 0.97 | G13: =SUM(G11:G12) -> 0.459 | H13: 0 | I13: =SUM(I11:I12) -> 0 | J13: =SUM(J11:J12) -> 0 | K13: =SUM(K11:K12) -> 0 | L13: =SUM(J13:K13) -> 0 | N13: =SUM(F13:K13) -> 1.429 | P13: 2.244598792 | R13: This reflects a continuation of a higher level of equipment reliability than expected in an increasing asset base, resulting in a reduced level of maintenance effort to date and allowing reallocation of resources to lines and substations
B14: Lines
B15: Labour | C15: 1.185530352 | D15: 0 | E15: 1.040594263 | F15: 2.226124615 | G15: 2.136762822 | N15: =SUM(F15:K15) -> 4.362887437
B16: Non Labour | C16: 1.311469648 | D16: 0 | E16: 0.9454057367 | F16: 2.256875385 | G16: 2.880237178 | N16: 5.137112563
B17: Lines | C17: =SUM(C15:C16) -> 2.497 | D17: 0 | E17: 1.986 | F17: 4.483 | G17: =SUM(G15:G16) -> 5.017 | H17: 0 | I17: =SUM(I15:I16) -> 0 | J17: =SUM(J15:J16) -> 0 | K17: =SUM(K15:K16) -> 0 | L17: =SUM(J17:K17) -> 0 | N17: =SUM(F17:K17) -> 9.5 | P17: 6.053279408 | R17: This spend level reflects growth in refurbishment effort due to increased remedial work identified by asset testing, plus increased routine inspection effort, driven by asset condition and fire start risk mitigation
B18: Secondary Systems
B19: Labour | C19: 0.406275026 | D19: 0 | E19: 0.8867748265 | F19: 1.293049853 | G19: 0.01938607021 | N19: =SUM(F19:K19) -> 1.312435923
B20: Non Labour | C20: 0.229724974 | D20: 0 | E20: 0.0972251735 | F20: 0.3269501475 | G20: 0.01161392979 | N20: 0.3385640773
B21: Secondary Systems | C21: =SUM(C19:C20) -> 0.636 | D21: 0 | E21: 0.984 | F21: 1.62 | G21: =SUM(G19:G20) -> 0.031 | H21: 0 | I21: =SUM(I19:I20) -> 0 | J21: =SUM(J19:J20) -> 0 | K21: =SUM(K19:K20) -> 0 | L21: =SUM(J21:K21) -> 0 | N21: =SUM(F21:K21) -> 1.651 | P21: 2.629004967 | R21: Reflects rescheduling of secondary systems refurbishment activity as available resources were reprioritised to lines and substation maintenance activity
B22: Substations
B23: Labour | C23: 3.468030057 | D23: 0 | E23: 3.42016993 | F23: 6.888199987 | G23: 1.377047449 | N23: =SUM(F23:K23) -> 8.265247436
B24: Non Labour | C24: 1.960969943 | D24: 0 | E24: 0.5978300701 | F24: 2.558800013 | G24: 0.9509525505 | N24: 3.509752564
B25: Substations | C25: =SUM(C23:C24) -> 5.429 | D25: 0 | E25: 4.018 | F25: 9.447 | G25: =SUM(G23:G24) -> 2.328 | H25: 0 | I25: =SUM(I23:I24) -> 0 | J25: =SUM(J23:J24) -> 0 | K25: =SUM(K23:K24) -> 0 | L25: =SUM(J25:K25) -> 0 | N25: =SUM(F25:K25) -> 11.775 | P25: 11.13518244 | R25: Significant improvements in asset inspection and condition assessment processes have revealed the need for additional corrective effort to mitigate risk
B26: Easements
B27: Labour | C27: 1.186665845 | D27: 0 | E27: 0 | F27: 1.186665845 | G27: 0 | N27: =SUM(F27:K27) -> 1.186665845
B28: Non Labour | C28: 0.3603341554 | D28: 0 | E28: 0.048 | F28: 0.4083341554 | G28: 0 | N28: 0.4083341554
B29: Easements | C29: =SUM(C27:C28) -> 1.547 | D29: 0 | E29: 0.048 | F29: 1.595 | G29: =SUM(G27:G28) -> 0 | H29: 0 | I29: =SUM(I27:I28) -> 0 | J29: =SUM(J27:J28) -> 0 | K29: =SUM(K27:K28) -> 0 | L29: =SUM(J29:K29) -> 0 | N29: =SUM(F29:K29) -> 1.595 | P29: 1.181814629 | R29: The ongoing overspend in routine easement spend reflects extra vegetation cutting requirements placed on ElectraNet by the Technical Regulator
B30: Summary
B31: Sub-Total Labour | C31: =+C11+C15+C19+C23+C27 -> 6.866134574 | D31: 0 | E31: 5.34753902 | F31: 12.21367359 | G31: 3.774949669 | H31: 0 | I31: 0 | J31: 0 | K31: 0 | N31: =SUM(F31:K31) -> 15.98862326
B32: Sub-Total Non Labour | C32: 4.212865426 | D32: 0 | E32: 1.68846098 | F32: 5.901326406 | G32: 4.060050331 | H32: 0 | I32: 0 | J32: 0 | K32: 0 | N32: =SUM(F32:K32) -> 9.961376737
B33: Total Maintenance | C33: =+C31+C32 -> 11.079 | D33: =+D31+D32 -> 0 | E33: =+E31+E32 -> 7.036 | F33: 18.115 | G33: =+G31+G32 -> 7.835 | H33: =+H31+H32 -> 0 | I33: =+I31+I32 -> 0 | J33: =+J31+J32 -> 0 | K33: =+K31+K32 -> 0 | L33: =SUM(J33:K33) -> 0 | N33: =SUM(F33:K33) -> 25.95 | P33: 23.24388024
B34: Field Support
B35: Field Support | H35: 7.061 | N35: =SUM(F35:K35) -> 7.061 | P35: 7.333494812
B36: Direct Charges | H36: 2.155 | N36: 2.155 | P36: 2.107917381
B37: Field Support | C37: =SUM(C35:C36) -> 0 | D37: =SUM(D35:D36) -> 0 | E37: =SUM(E35:E36) -> 0 | F37: =SUM(C37:E37) -> 0 | G37: =SUM(G35:G36) -> 0 | H37: =SUM(H35:H36) -> 9.216 | I37: =SUM(I35:I36) -> 0 | J37: =SUM(J35:J36) -> 0 | K37: =SUM(K35:K36) -> 0 | L37: =SUM(J37:K37) -> 0 | N37: =SUM(F37:K37) -> 9.216 | P37: =SUM(P35:P36) -> 9.441412194
B38: Operations
B39: Network Switching | I39: 1.535 | N39: =SUM(F39:K39) -> 1.535 | P39: 1.565622377
B40: Asset Monitoring | I40: 0.612 | N40: 0.612 | P40: 0.7427411924
B41: Operations | C41: =SUM(C39:C40) -> 0 | D41: =SUM(D39:D40) -> 0 | E41: =SUM(E39:E40) -> 0 | F41: =SUM(C41:E41) -> 0 | G41: =SUM(G39:G40) -> 0 | H41: =SUM(H39:H40) -> 0 | I41: =SUM(I39:I40) -> 2.147 | J41: =SUM(J39:J40) -> 0 | K41: =SUM(K39:K40) -> 0 | L41: =SUM(J41:K41) -> 0 | N41: =SUM(F41:K41) -> 2.147 | P41: =SUM(P39:P40) -> 2.308363569
B42: Total Direct Operations & Maintenance | C42: =+C41+C37+C33 -> 11.079 | D42: =+D41+D37+D33 -> 0 | E42: =+E41+E37+E33 -> 7.036 | F42: =SUM(C42:E42) -> 18.115 | G42: =+G41+G37+G33 -> 7.835 | H42: =+H41+H37+H33 -> 9.216 | I42: =+I41+I37+I33 -> 2.147 | J42: =+J41+J37+J33 -> 0 | K42: =+K41+K37+K33 -> 0 | L42: =SUM(J42:K42) -> 0 | N42: =SUM(F42:K42) -> 37.313 | P42: =P41+P37+P33 -> 34.993656
B43: Other Controllable
B44: Asset Manager Support
B45: Grid Planning | J45: 1.838 | K45: 0 | N45: =SUM(F45:K45) -> 1.838 | P45: 1.158592372
B46: Project Support | J46: 3.383 | K46: 0 | N46: 3.383 | P46: 3.272851597
B47: IT Support | J47: 0 | K47: 1.32 | N47: 1.32 | P47: 1.905268524
B48: Customer & Regulatory Support | J48: 0.579 | K48: 0 | N48: 0.579 | P48: 0.6817519576
B49: Asset Manager Support | C49: =SUM(C45:C48) -> 0 | D49: =SUM(D45:D48) -> 0 | E49: =SUM(E45:E48) -> 0 | F49: =SUM(C49:E49) -> 0 | G49: =SUM(G45:G48) -> 0 | H49: =SUM(H45:H48) -> 0 | I49: =SUM(I45:I48) -> 0 | J49: =SUM(J45:J48) -> 5.8 | K49: =SUM(K45:K48) -> 1.32 | L49: =SUM(J49:K49) -> 7.12 | N49: =SUM(F49:K49) -> 7.12 | P49: =SUM(P45:P48) -> 7.018464451
B50: Insurance | F50: 0 | G50: 0 | H50: 0 | I50: 0 | K50: 2.228491 | L50: =SUM(J50:K50) -> 2.228491 | N50: =SUM(F50:K50) -> 2.228491 | P50: =4.96-K60 -> 3.086491 | R50: ElectraNet was able to increase its level of cover and achieve insurance premiums lower than the allowance in the current economic climate
B51: Corporate Support | F51: 0 | G51: 0 | H51: 0 | I51: 0 | K51: 9.217 | L51: =SUM(J51:K51) -> 9.217 | N51: =SUM(F51:K51) -> 9.217 | P51: 11.59661263 | R51: Operational efficiencies and cost savings achieved
B52: Total Other Controllable | C52: =+C51+C50+C49 -> 0 | D52: =+D51+D50+D49 -> 0 | E52: =+E51+E50+E49 -> 0 | F52: =SUM(C52:E52) -> 0 | G52: =+G51+G50+G49 -> 0 | H52: =+H51+H50+H49 -> 0 | I52: =+I51+I50+I49 -> 0 | J52: =+J51+J50+J49 -> 5.8 | K52: =+K51+K50+K49 -> 12.765491 | L52: =SUM(J52:K52) -> 18.565491 | N52: =SUM(F52:K52) -> 18.565491 | P52: =SUM(P49:P51) -> 21.70156808
B54: Total Maintenance Labour | C54: =+C31 -> 6.866134574 | D54: 0 | E54: 5.34753902 | G54: =+G31 -> 3.774949669 | H54: 0 | I54: 0 | J54: 0 | K54: 0 | N54: =SUM(F54:K54) -> 3.774949669
B55: Total Maintenance Non labour | C55: 4.212865426 | D55: 0 | E55: 1.68846098 | G55: 4.060050331 | H55: 0 | I55: 0 | J55: 0 | K55: 0 | N55: =SUM(F55:K55) -> 4.060050331
B56: Total Other | C56: =C37+C41+C49+C50+C51 -> 0 | D56: 0 | E56: 0 | F56: 0 | G56: 0 | H56: 9.216 | I56: 2.147 | J56: 5.8 | K56: 12.765491 | N56: =SUM(F56:K56) -> 29.928491
B57: TOTAL CONTROLLABLE OPEX | C57: =+C52+C42 -> 11.079 | D57: =+D52+D42 -> 0 | E57: =+E52+E42 -> 7.036 | F57: =SUM(C57:E57) -> 18.115 | G57: =+G52+G42 -> 7.835 | H57: =+H52+H42 -> 9.216 | I57: =+I52+I42 -> 2.147 | J57: =+J52+J42 -> 5.8 | K57: =+K52+K42 -> 12.765491 | L57: =SUM(J57:K57) -> 18.565491 | N57: =SUM(F57:K57) -> 55.878491 | P57: =P52+P42 -> 56.69522408
B59: Other Opex
B60: Self Insurance | F60: 0 | G60: 0 | H60: 0 | I60: 0 | J60: 0 | K60: 1.873509 | L60: =SUM(J60:K60) -> 1.873509 | N60: =SUM(F60:K60) -> 1.873509 | P60: =K60 -> 1.873509
B61: Network Support | F61: 0 | G61: 0 | H61: 0 | I61: 0 | J61: 6.618 | L61: =SUM(J61:K61) -> 6.618 | N61: =SUM(F61:K61) -> 6.618 | P61: 5.523172328 | R61: Refer Network Support Pass Through Application
B62: TOTAL OTHER OPEX | C62: =SUM(C61:C61) -> 0 | D62: =SUM(D61:D61) -> 0 | E62: =SUM(E60:E61) -> 0 | F62: 0 | G62: 0 | H62: 0 | I62: 0 | J62: 6.618 | K62: 1.873509 | L62: =SUM(L60:L61) -> 8.491509 | N62: =SUM(N60:N61) -> 8.491509 | P62: 7.396681328
B65: Grand Total | C65: =+C62+C57 -> 11.079 | D65: =+D62+D57 -> 0 | E65: =+E62+E57 -> 7.036 | F65: =SUM(C65:E65) -> 18.115 | G65: =+G62+G57 -> 7.835 | H65: =+H62+H57 -> 9.216 | I65: =+I62+I57 -> 2.147 | J65: =+J62+J57 -> 12.418 | K65: =+K62+K57 -> 14.639 | L65: =SUM(J65:K65) -> 27.057 | N65: =+N62+N57 -> 64.37 | P65: =P57+P62 -> 64.09190541
B67: Revenue Cap Allowance | C67: 9.563956616 | D67: 0.1498773913 | E67: 5.84712965 | F67: 15.56096366 | G67: 7.68291658 | H67: 9.441412194 | I67: 2.308363569 | J67: 10.63636825 | K67: 18.45799041 | L67: 29.09435866 | N67: =SUM(F67:K67) -> 64.08801467 | P67: =N67 -> 64.08801467
B68: Corrected values in red

Sheet Hist Opex Cat Yr4 Curr
B2: Current Regulatory Period (2008-2013) Reporting Format
B3: Historical expenditure category
B4: 2011/12
B5: ($m, nominal) | C5: Year 4
C6: Field Maintenance | F6: Field Maintenance | G6: Operational Refurbishment | I6: Network Monitoring & Control | J6: Support / Corporate | L6: Corporate Support | R6: Key cost drivers and explanation for material differences over time
C7: Routine | D7: Condition-Based | E7: Corrective | H7: Maintenance Support | J7: Network | K7: Non-Network | N7: TOTAL | P7: Revenue Cap Allowance
B8: Direct Operations & Maintenance
B9: Field Maintenance
B10: Communications
B11: Labour | C11: 0.43 | E11: 0 | F11: =SUM(C11:E11) -> 0.43 | G11: 0.1493314062 | N11: =SUM(F11:K11) -> 0.5793314062
B12: Non Labour | C12: =0.726+0.236 -> 0.962 | E12: 0 | F12: =SUM(C12:E12) -> 0.962 | G12: 0.524 | N12: 1.486
B13: Communications | C13: =SUM(C11:C12) -> 1.392 | D13: 0 | E13: =SUM(E11:E12) -> 0 | F13: 1.392 | G13: 0.6733314062 | H13: 0 | I13: =SUM(I11:I12) -> 0 | J13: =SUM(J11:J12) -> 0 | K13: =SUM(K11:K12) -> 0 | L13: =SUM(J13:K13) -> 0 | N13: =SUM(F13:K13) -> 2.065331406 | P13: 2.44
B14: Lines
B15: Labour | C15: 0.71 | E15: 1.26 | F15: =SUM(C15:E15) -> 1.97 | G15: 0.86 | N15: =SUM(F15:K15) -> 2.83
B16: Non Labour | C16: 2.61 | E16: 4.46 | F16: 7.07 | G16: 3.86 | N16: 10.93
B17: Lines | C17: =SUM(C15:C16) -> 3.32 | D17: 0 | E17: =SUM(E15:E16) -> 5.72 | F17: 9.04 | G17: 4.72 | H17: 0 | I17: =SUM(I15:I16) -> 0 | J17: =SUM(J15:J16) -> 0 | K17: =SUM(K15:K16) -> 0 | L17: =SUM(J17:K17) -> 0 | N17: =SUM(F17:K17) -> 13.76 | P17: 5.87
B18: Secondary Systems
B19: Labour | C19: 0.44 | E19: 0.5337757661 | F19: =SUM(C19:E19) -> 0.9737757661 | G19: 0.23 | N19: =SUM(F19:K19) -> 1.203775766
B20: Non Labour | C20: 0.267 | E20: 0.43 | F20: 0.697 | G20: 0.12 | N20: 0.817
B21: Secondary Systems | C21: =SUM(C19:C20) -> 0.707 | D21: 0 | E21: =SUM(E19:E20) -> 0.9637757661 | F21: 1.670775766 | G21: 0.35 | H21: 0 | I21: =SUM(I19:I20) -> 0 | J21: =SUM(J19:J20) -> 0 | K21: =SUM(K19:K20) -> 0 | L21: =SUM(J21:K21) -> 0 | N21: =SUM(F21:K21) -> 2.020775766 | P21: 3.06
B22: Substations
B23: Labour | C23: 2.76 | E23: 2.096271984 | F23: =SUM(C23:E23) -> 4.856271984 | G23: 0.8538745989 | N23: =SUM(F23:K23) -> 5.710146583
B24: Non Labour | C24: 3.63 | E24: 2.11 | F24: 5.74 | G24: 0.47 | N24: 6.21
B25: Substations | C25: =SUM(C23:C24) -> 6.39 | D25: 0 | E25: =SUM(E23:E24) -> 4.206271984 | F25: 10.59627198 | G25: 1.323874599 | H25: 0 | I25: =SUM(I23:I24) -> 0 | J25: =SUM(J23:J24) -> 0 | K25: =SUM(K23:K24) -> 0 | L25: =SUM(J25:K25) -> 0 | N25: =SUM(F25:K25) -> 11.92014658 | P25: 11.89
B26: Easements
B27: Labour | C27: 0.81 | E27: 0 | F27: =SUM(C27:E27) -> 0.81 | G27: 0 | N27: =SUM(F27:K27) -> 0.81
B28: Non Labour | C28: 0.73 | E28: 0 | F28: 0.73 | G28: 0 | N28: 0.73
B29: Easements | C29: =SUM(C27:C28) -> 1.54 | D29: 0 | E29: =SUM(E27:E28) -> 0 | F29: 1.54 | G29: =SUM(G27:G28) -> 0 | H29: 0 | I29: =SUM(I27:I28) -> 0 | J29: =SUM(J27:J28) -> 0 | K29: =SUM(K27:K28) -> 0 | L29: =SUM(J29:K29) -> 0 | N29: =SUM(F29:K29) -> 1.54 | P29: 1.21
B30: Summary
B31: Sub-Total Labour | C31: =+C11+C15+C19+C23+C27 -> 5.15 | D31: 0 | E31: 3.89004775 | F31: 9.04004775 | G31: 2.093206005 | H31: 0 | I31: 0 | J31: 0 | K31: 0 | N31: =SUM(F31:K31) -> 11.13325376
B32: Sub-Total Non Labour | C32: 8.199 | D32: 0 | E32: 7 | F32: 15.199 | G32: 4.974 | H32: 0 | I32: 0 | J32: 0 | K32: 0 | N32: =SUM(F32:K32) -> 20.173
B33: Total Maintenance | C33: =+C31+C32 -> 13.349 | D33: =+D31+D32 -> 0 | E33: =+E31+E32 -> 10.89004775 | F33: 24.23904775 | G33: =+G31+G32 -> 7.067206005 | H33: =+H31+H32 -> 0 | I33: =+I31+I32 -> 0 | J33: =+J31+J32 -> 0 | K33: =+K31+K32 -> 0 | L33: =SUM(J33:K33) -> 0 | N33: =SUM(F33:K33) -> 31.30625376 | P33: =SUM(P13:P29) -> 24.47
B34: Field Support
B35: Field Support | H35: 7.282 | N35: =SUM(F35:K35) -> 7.282 | P35: 7.71
B36: Direct Charges | H36: 1.914 | N36: 1.914 | P36: 2.32
B37: Field Support | C37: =SUM(C35:C36) -> 0 | D37: =SUM(D35:D36) -> 0 | E37: =SUM(E35:E36) -> 0 | F37: =SUM(C37:E37) -> 0 | G37: =SUM(G35:G36) -> 0 | H37: =SUM(H35:H36) -> 9.196 | I37: =SUM(I35:I36) -> 0 | J37: =SUM(J35:J36) -> 0 | K37: =SUM(K35:K36) -> 0 | L37: =SUM(J37:K37) -> 0 | N37: =SUM(F37:K37) -> 9.196 | P37: =SUM(P35:P36) -> 10.03
B38: Operations
B39: Network Switching | I39: 1.732 | N39: =SUM(F39:K39) -> 1.732 | P39: 1.65
B40: Asset Monitoring | I40: 0.827 | N40: 0.827 | P40: 0.78
B41: Operations | C41: =SUM(C39:C40) -> 0 | D41: =SUM(D39:D40) -> 0 | E41: =SUM(E39:E40) -> 0 | F41: =SUM(C41:E41) -> 0 | G41: =SUM(G39:G40) -> 0 | H41: =SUM(H39:H40) -> 0 | I41: =SUM(I39:I40) -> 2.559 | J41: =SUM(J39:J40) -> 0 | K41: =SUM(K39:K40) -> 0 | L41: =SUM(J41:K41) -> 0 | N41: =SUM(F41:K41) -> 2.559 | P41: =SUM(P39:P40) -> 2.43
B42: Total Direct Operations & Maintenance | C42: =+C41+C37+C33 -> 13.349 | D42: =+D41+D37+D33 -> 0 | E42: =+E41+E37+E33 -> 10.89004775 | F42: =SUM(C42:E42) -> 24.23904775 | G42: =+G41+G37+G33 -> 7.067206005 | H42: =+H41+H37+H33 -> 9.196 | I42: =+I41+I37+I33 -> 2.559 | J42: =+J41+J37+J33 -> 0 | K42: =+K41+K37+K33 -> 0 | L42: =SUM(J42:K42) -> 0 | N42: =SUM(F42:K42) -> 43.06125376 | P42: =P41+P37+P33 -> 36.93
B43: Other Controllable
B44: Asset Manager Support
B45: Grid Planning | J45: 1.258 | K45: 0 | N45: =SUM(F45:K45) -> 1.258 | P45: 1.2
B46: Project Support | J46: 3.225 | K46: 0 | N46: 3.225 | P46: 3.41
B47: IT Support | J47: 0 | K47: 1.921 | N47: 1.921 | P47: 1.96
B48: Customer & Regulatory Support | J48: 0.759 | K48: 0 | N48: 0.759 | P48: 0.71
B49: Asset Manager Support | C49: =SUM(C45:C48) -> 0 | D49: =SUM(D45:D48) -> 0 | E49: =SUM(E45:E48) -> 0 | F49: =SUM(C49:E49) -> 0 | G49: =SUM(G45:G48) -> 0 | H49: =SUM(H45:H48) -> 0 | I49: =SUM(I45:I48) -> 0 | J49: =SUM(J45:J48) -> 5.242 | K49: =SUM(K45:K48) -> 1.921 | L49: =SUM(J49:K49) -> 7.163 | N49: =SUM(F49:K49) -> 7.163 | P49: =SUM(P45:P48) -> 7.28
B50: Insurance | F50: 0 | G50: 0 | H50: 0 | I50: 0 | K50: =4.404-1.923 -> 2.481 | L50: 4.404 | N50: =SUM(F50:K50) -> 2.481 | P50: =5.36-K60 -> 3.437
B51: Corporate Support | F51: 0 | G51: 0 | H51: 0 | I51: 0 | K51: 11.476 | L51: 11.476 | N51: =SUM(F51:K51) -> 11.476 | P51: 12.59
B52: Total Other Controllable | C52: =+C51+C50+C49 -> 0 | D52: =+D51+D50+D49 -> 0 | E52: =+E51+E50+E49 -> 0 | F52: =SUM(C52:E52) -> 0 | G52: =+G51+G50+G49 -> 0 | H52: =+H51+H50+H49 -> 0 | I52: =+I51+I50+I49 -> 0 | J52: =+J51+J50+J49 -> 5.242 | K52: =+K51+K50+K49 -> 15.878 | L52: =SUM(J52:K52) -> 21.12 | N52: =SUM(F52:K52) -> 21.12 | P52: =SUM(P49:P51) -> 23.307
B54: Total Maintenance Labour | C54: =+C31 -> 5.15 | D54: 0 | E54: 3.89004775 | G54: =+G31 -> 2.093206005 | H54: 0 | I54: 0 | J54: 0 | K54: 0 | N54: =SUM(F54:K54) -> 2.093206005
B55: Total Maintenance Non labour | C55: 8.199 | D55: 0 | E55: 7 | G55: 4.974 | H55: 0 | I55: 0 | J55: 0 | K55: 0 | N55: =SUM(F55:K55) -> 4.974
B56: Total Other | C56: =C37+C41+C49+C50+C51 -> 0 | D56: 0 | E56: 0 | F56: 0 | G56: 0 | H56: 9.196 | I56: 2.559 | J56: 5.242 | K56: 15.878 | N56: =SUM(F56:K56) -> 32.875
B57: TOTAL CONTROLLABLE OPEX | C57: =+C52+C42 -> 13.349 | D57: =+D52+D42 -> 0 | E57: =+E52+E42 -> 10.89004775 | F57: =SUM(C57:E57) -> 24.23904775 | G57: =+G52+G42 -> 7.067206005 | H57: =+H52+H42 -> 9.196 | I57: =+I52+I42 -> 2.559 | J57: =+J52+J42 -> 5.242 | K57: =+K52+K42 -> 15.878 | L57: =SUM(J57:K57) -> 21.12 | N57: =SUM(F57:K57) -> 64.18125376 | P57: =P52+P42 -> 60.237
B59: Other Opex
B60: Self Insurance | F60: 0 | G60: 0 | H60: 0 | I60: 0 | K60: 1.923 | L60: =SUM(J60:K60) -> 1.923 | N60: =SUM(F60:K60) -> 1.923 | P60: =K60 -> 1.923
B61: Network Support | F61: 0 | G61: 0 | H61: 0 | I61: 0 | J61: 6.48 | L61: =SUM(J61:K61) -> 6.48 | N61: =SUM(F61:K61) -> 6.48 | P61: 5.97
B62: TOTAL OTHER OPEX | C62: =SUM(C61:C61) -> 0 | D62: =SUM(D61:D61) -> 0 | E62: =SUM(E60:E61) -> 0 | F62: 0 | G62: 0 | H62: 0 | I62: 0 | J62: 6.48 | K62: 1.923 | L62: =SUM(L60:L61) -> 8.403 | N62: =SUM(N60:N61) -> 8.403 | P62: 7.893
B65: Grand Total | C65: =+C62+C57 -> 13.349 | D65: =+D62+D57 -> 0 | E65: =+E62+E57 -> 10.89004775 | F65: =SUM(C65:E65) -> 24.23904775 | G65: =+G62+G57 -> 7.067206005 | H65: =+H62+H57 -> 9.196 | I65: =+I62+I57 -> 2.559 | J65: =+J62+J57 -> 11.722 | K65: =+K62+K57 -> 17.801 | L65: =SUM(J65:K65) -> 29.523 | N65: =+N62+N57 -> 72.58425376 | P65: =P57+P62 -> 68.13
B67: Revenue Cap Allowance | C67: 9.563956616 | D67: 0.1498773913 | E67: 5.84712965 | F67: 15.56096366 | G67: 8.912429343 | H67: 10.031729 | I67: 2.432277 | J67: 11.28302 | K67: 19.913524 | L67: 31.196544 | N67: =SUM(F67:K67) -> 68.133943

Sheet Hist Opex Cat Yr5 Curr
B2: Current Regulatory Period (2008-2013) Reporting Format
B3: Historical expenditure category
B4: 2012/13
B5: ($m, nominal) | C5: Year 5
C6: Field Maintenance | F6: Field Maintenance | G6: Operational Refurbishment | I6: Network Monitoring & Control | J6: Support / Corporate | L6: Corporate Support | R6: Key cost drivers and explanation for material differences over time
C7: Routine | D7: Condition-Based | E7: Corrective | H7: Maintenance Support | J7: Network | K7: Non-Network | N7: TOTAL | P7: Revenue Cap Allowance
B8: Direct Operations & Maintenance
B9: Field Maintenance
B10: Communications
B11: Labour | C11: 0.3774124809 | E11: 0.0718754417 | F11: 0.4492879226 | G11: 0.1651610709 | N11: =SUM(F11:K11) -> 0.6144489935
B12: Non Labour | C12: 0.1822851191 | E12: 0.004429908297 | F12: 0.1867150274 | G12: 0.4348389291 | N12: 0.6215539565
B13: Communications | C13: =SUM(C11:C12) -> 0.5596976 | D13: 0 | E13: 0.07630535 | F13: 0.63600295 | G13: 0.6 | H13: 0 | I13: =SUM(I11:I12) -> 0 | J13: =SUM(J11:J12) -> 0 | K13: =SUM(K11:K12) -> 0 | L13: =SUM(J13:K13) -> 0 | N13: =SUM(F13:K13) -> 1.23600295 | P13: 2.72
B14: Lines
B15: Labour | C15: 0.7291217686 | E15: 0.6953017619 | F15: 1.424423531 | G15: 0.4342684779 | N15: =SUM(F15:K15) -> 1.858692008
B16: Non Labour | C16: 2.700333051 | E16: 2.575079238 | F16: 5.275412289 | G16: 1.608331522 | N16: 6.883743812
B17: Lines | C17: =SUM(C15:C16) -> 3.42945482 | D17: 0 | E17: 3.270381 | F17: 6.69983582 | G17: 2.0426 | H17: 0 | I17: =SUM(I15:I16) -> 0 | J17: =SUM(J15:J16) -> 0 | K17: =SUM(K15:K16) -> 0 | L17: =SUM(J17:K17) -> 0 | N17: =SUM(F17:K17) -> 8.74243582 | P17: 5.8
B18: Secondary Systems
B19: Labour | C19: 0.427685992 | E19: 0.474596026 | F19: 0.902282018 | G19: 0.07292280868 | N19: =SUM(F19:K19) -> 0.9752048267
B20: Non Labour | C20: 0.374934978 | E20: 0.416059104 | F20: 0.790994082 | G20: 0.06392847132 | N20: 0.8549225533
B21: Secondary Systems | C21: =SUM(C19:C20) -> 0.80262097 | D21: 0 | E21: 0.89065513 | F21: 1.6932761 | G21: 0.13685128 | H21: 0 | I21: =SUM(I19:I20) -> 0 | J21: =SUM(J19:J20) -> 0 | K21: =SUM(K19:K20) -> 0 | L21: =SUM(J21:K21) -> 0 | N21: =SUM(F21:K21) -> 1.83012738 | P21: 3.81
B22: Substations
B23: Labour | C23: 3.053899712 | E23: 2.282726387 | F23: 5.336626099 | G23: 1.529252589 | N23: =SUM(F23:K23) -> 6.865878687
B24: Non Labour | C24: 3.306508408 | E24: 2.471546123 | F24: 5.778054531 | G24: 1.655747411 | N24: 7.433801943
B25: Substations | C25: =SUM(C23:C24) -> 6.36040812 | D25: 0 | E25: 4.75427251 | F25: 11.11468063 | G25: 3.185 | H25: 0 | I25: =SUM(I23:I24) -> 0 | J25: =SUM(J23:J24) -> 0 | K25: =SUM(K23:K24) -> 0 | L25: =SUM(J25:K25) -> 0 | N25: =SUM(F25:K25) -> 14.29968063 | P25: 11.8
B26: Easements
B27: Labour | C27: 0.785432499 | E27: 0 | F27: 0.785432499 | G27: 0 | N27: =SUM(F27:K27) -> 0.785432499
B28: Non Labour | C28: 0.690338221 | E28: 0 | F28: 0.690338221 | G28: 0 | N28: 0.690338221
B29: Easements | C29: =SUM(C27:C28) -> 1.47577072 | D29: 0 | E29: 0 | F29: 1.47577072 | G29: 0 | H29: 0 | I29: =SUM(I27:I28) -> 0 | J29: =SUM(J27:J28) -> 0 | K29: =SUM(K27:K28) -> 0 | L29: =SUM(J29:K29) -> 0 | N29: =SUM(F29:K29) -> 1.47577072 | P29: 1.26
B30: Summary
B31: Sub-Total Labour | C31: =+C11+C15+C19+C23+C27 -> 5.373552452 | D31: 0 | E31: 3.524499617 | F31: 8.898052069 | G31: 2.201604946 | H31: 0 | I31: 0 | J31: 0 | K31: 0 | N31: =SUM(F31:K31) -> 11.09965701
B32: Sub-Total Non Labour | C32: 7.254399778 | D32: 0 | E32: 5.467114373 | F32: 12.72151415 | G32: 3.762846334 | H32: 0 | I32: 0 | J32: 0 | K32: 0 | N32: =SUM(F32:K32) -> 16.48436049
B33: Total Maintenance | C33: =+C31+C32 -> 12.62795223 | D33: =+D31+D32 -> 0 | E33: =+E31+E32 -> 8.99161399 | F33: 21.61956622 | G33: =+G31+G32 -> 5.96445128 | H33: =+H31+H32 -> 0 | I33: =+I31+I32 -> 0 | J33: =+J31+J32 -> 0 | K33: =+K31+K32 -> 0 | L33: =SUM(J33:K33) -> 0 | N33: =SUM(F33:K33) -> 27.5840175 | P33: =SUM(P13:P29) -> 25.39
B34: Field Support
B35: Field Support | H35: =8.8055161*0+7.06 -> 7.06 | N35: =SUM(F35:K35) -> 7.06 | P35: 8.29
B36: Direct Charges | H36: 2.85721226 | N36: 2.85721226 | P36: 2.54
B37: Field Support | C37: =SUM(C35:C36) -> 0 | D37: =SUM(D35:D36) -> 0 | E37: =SUM(E35:E36) -> 0 | F37: =SUM(C37:E37) -> 0 | G37: =SUM(G35:G36) -> 0 | H37: =H36+H35 -> 9.91721226 | I37: 0 | J37: 0 | K37: 0 | L37: =SUM(J37:K37) -> 0 | N37: =SUM(F37:K37) -> 9.91721226 | P37: =SUM(P35:P36) -> 10.83
B38: Operations
B39: Network Switching | I39: 1.68 | N39: =SUM(F39:K39) -> 1.68 | P39: 1.78
B40: Asset Monitoring | I40: 1.47 | N40: 1.47 | P40: 0.84
B41: Operations | C41: =SUM(C39:C40) -> 0 | D41: =SUM(D39:D40) -> 0 | E41: =SUM(E39:E40) -> 0 | F41: =SUM(C41:E41) -> 0 | G41: =SUM(G39:G40) -> 0 | H41: 0 | I41: =I40+I39 -> 3.15 | J41: 0 | K41: 0 | L41: =SUM(J41:K41) -> 0 | N41: =SUM(F41:K41) -> 3.15 | P41: =SUM(P39:P40) -> 2.62
B42: Total Direct Operations & Maintenance | C42: =+C41+C37+C33 -> 12.62795223 | D42: =+D41+D37+D33 -> 0 | E42: =+E41+E37+E33 -> 8.99161399 | F42: =SUM(C42:E42) -> 21.61956622 | G42: =+G41+G37+G33 -> 5.96445128 | H42: =+H41+H37+H33 -> 9.91721226 | I42: 3.15 | J42: 0 | K42: 0 | L42: 0 | N42: =SUM(F42:K42) -> 40.65122976 | P42: =P41+P37+P33 -> 38.84
B43: Other Controllable
B44: Asset Manager Support
B45: Grid Planning | J45: =1.25+0.54 -> 1.79 | N45: =SUM(F45:K45) -> 1.79 | P45: 1.27
B46: Project Support | J46: 2.77 | N46: 2.77 | P46: 3.6
B47: IT Support | K47: 1.78 | N47: 1.78 | P47: 2.05
B48: Customer & Regulatory Support | J48: 2.11 | N48: 2.11 | P48: 0.74
B49: Asset Manager Support | C49: =SUM(C45:C48) -> 0 | D49: =SUM(D45:D48) -> 0 | E49: =SUM(E45:E48) -> 0 | F49: =SUM(C49:E49) -> 0 | G49: =SUM(G45:G48) -> 0 | H49: 0 | I49: 0 | J49: =SUM(J45:J48) -> 6.67 | K49: 1.77912252 | L49: =SUM(J49:K49) -> 8.44912252 | N49: =SUM(F49:K49) -> 8.44912252 | P49: =SUM(P45:P48) -> 7.66
B50: Insurance | F50: 0 | G50: 0 | H50: 0 | I50: 0 | K50: 2.81 | L50: =SUM(J50:K50) -> 2.81 | N50: =SUM(F50:K50) -> 2.81 | P50: =5.91-K60 -> 3.877344
B51: Corporate Support | F51: 0 | G51: 0 | H51: 0 | I51: 0 | K51: 13.38 | L51: =SUM(J51:K51) -> 13.38 | N51: =SUM(F51:K51) -> 13.38 | P51: 13.17
B52: Total Other Controllable | C52: =+C51+C50+C49 -> 0 | D52: =+D51+D50+D49 -> 0 | E52: =+E51+E50+E49 -> 0 | F52: =SUM(C52:E52) -> 0 | G52: =+G51+G50+G49 -> 0 | H52: =+H51+H50+H49 -> 0 | I52: =+I51+I50+I49 -> 0 | J52: =+J51+J50+J49 -> 6.67 | K52: =+K51+K50+K49 -> 17.96912252 | L52: =SUM(J52:K52) -> 24.63912252 | N52: =SUM(F52:K52) -> 24.63912252 | P52: =SUM(P49:P51) -> 24.707344
B54: Total Maintenance Labour | C54: =+C31 -> 5.373552452 | D54: 0 | E54: 3.524499617 | F54: 8.898052069 | G54: 2.201604946 | H54: 0 | I54: 0 | J54: 0 | K54: 0 | N54: =SUM(F54:K54) -> 11.09965701
B55: Total Maintenance Non labour | C55: 7.254399778 | D55: 0 | E55: 5.467114373 | F55: 12.72151415 | G55: 3.762846334 | H55: 0 | I55: 0 | J55: 0 | K55: 0 | N55: =SUM(F55:K55) -> 16.48436049
B56: Total Other | C56: =C37+C41+C49+C50+C51 -> 0 | D56: 0 | E56: 0 | F56: 0 | G56: 0 | H56: 9.91721226 | I56: 3.15 | J56: 6.67 | K56: 17.96912252 | N56: =SUM(F56:K56) -> 37.70633478
B57: TOTAL CONTROLLABLE OPEX | C57: =+C52+C42 -> 12.62795223 | D57: =+D52+D42 -> 0 | E57: =+E52+E42 -> 8.99161399 | F57: =SUM(C57:E57) -> 21.61956622 | G57: =+G52+G42 -> 5.96445128 | H57: =+H52+H42 -> 9.91721226 | I57: =+I52+I42 -> 3.15 | J57: =+J52+J42 -> 6.67 | K57: =+K52+K42 -> 17.96912252 | L57: =SUM(J57:K57) -> 24.63912252 | N57: =SUM(F57:K57) -> 65.29035228 | P57: =P52+P42 -> 63.547344
B59: Other Opex
B60: Self Insurance | K60: 2.032656 | L60: =SUM(J60:K60) -> 2.032656 | N60: =SUM(F60:K60) -> 2.032656 | P60: =K60 -> 2.032656
B61: Network Support | J61: 6.74 | L61: =SUM(J61:K61) -> 6.74 | N61: =SUM(F61:K61) -> 6.74 | P61: 7.23
B62: TOTAL OTHER OPEX | C62: =SUM(C61:C61) -> 0 | D62: =SUM(D61:D61) -> 0 | E62: =SUM(E60:E61) -> 0 | F62: 0 | G62: 0 | H62: 0 | I62: 0 | J62: 6.74 | K62: 2.032656 | L62: =SUM(L60:L61) -> 8.772656 | N62: =SUM(N60:N61) -> 8.772656 | P62: 9.262656
B65: Grand Total | C65: =+C62+C57 -> 12.62795223 | D65: =+D62+D57 -> 0 | E65: =+E62+E57 -> 8.99161399 | F65: =SUM(C65:E65) -> 21.61956622 | G65: =+G62+G57 -> 5.96445128 | H65: =+H62+H57 -> 9.91721226 | I65: =+I62+I57 -> 3.15 | J65: =+J62+J57 -> 13.41 | K65: =+K62+K57 -> 20.00177852 | L65: =SUM(J65:K65) -> 33.41177852 | N65: =+N62+N57 -> 74.06300828 | P65: =P57+P62 -> 72.81
B67: Revenue Cap Allowance | C67: 11.27 | D67: 0.19 | E67: 7.32 | F67: 18.78 | G67: 6.61 | H67: 10.83 | I67: 2.62 | J67: 12.84 | K67: 21.13 | L67: 33.97 | N67: =SUM(F67:K67) -> 72.81
